bitfinex/quotes_ETHUSD_20250801
["timestamp","ask_amount","ask_price","bid_price","bid_amount"]
[1754047140148,0.1384,3622.1,3621.9,3.35856127]
[1754047140312,0.1384,3622.1,3622.0,3.0]
[1754047140645,0.1384,3622.1,3622.0,2.76090557]
[1754047141213,0.1384,3622.1,3621.9,2.76096468]
[1754047141413,0.1384,3622.1,3622.0,6.35850557]
[1754047141745,0.1384,3622.1,3622.0,6.82080557]
[1754047142044,0.1384,3622.2,3622.1,5.76080994]
[1754047142258,0.1384,3622.2,3622.1,6.82070994]
[1754047142453,2.75967724,3623.7,3622.1,6.82070994]
[1754047142454,0.55,3623.5,3622.1,6.82070994]
[1754047142651,0.1384,3622.5,3622.1,6.82070994]
[1754047142813,4.26,3622.4,3622.3,2.76066212]
[1754047143007,4.26,3622.4,3622.3,3.82056212]
[1754047143206,4.26,3622.5,3622.4,2.7606007]
[1754047143650,4.26,3622.5,3622.4,3.8205007]
[1754047144598,4.26,3622.5,3622.4,3.3582007]
[1754047144898,4.26,3622.5,3622.2,0.4623]
[1754047144899,4.26,3622.5,3622.2,3.22302142]
[1754047145181,4.3984,3622.5,3622.1,2.76077818]
[1754047145382,4.3984,3622.5,3622.2,3.0]
[1754047145673,4.83824,3622.5,3622.0,0.1384]
[1754047145839,0.5864,3622.4,3622.0,0.1384]
[1754047146039,0.4596,3622.3,3621.4,3.0]
[1754047146268,4.69984,3622.5,3621.9,3.0]
[1754047146467,4.69984,3622.5,3621.9,2.760979]
[1754047146468,0.528624,3622.4,3621.9,2.760979]
[1754047146671,0.1384,3622.0,3621.8,2.76103853]
[1754047146871,0.1384,3622.0,3621.9,3.0]
[1754047148156,0.1384,3622.0,3621.9,5.7609818]
[1754047148356,0.1384,3622.0,3621.9,3.0]
[1754047148743,0.1384,3622.0,3621.6,0.21093198]
[1754047148943,4.259,3621.9,3621.5,6.35888341]
[1754047149176,0.1384,3621.7,3621.5,0.5976]
[1754047149382,0.1384,3621.7,3621.6,5.76121051]
[1754047149968,0.1384,3621.7,3621.6,3.0]
[1754047150292,0.1384,3621.7,3621.6,6.35881051]
[1754047150846,0.1384,3621.7,3621.6,6.82111051]
[1754047151078,4.3974,3621.9,3621.8,2.76105803]
[1754047151461,4.3974,3621.9,3621.8,3.82095803]
[1754047152089,4.3974,3621.9,3621.8,1.0599]
[1754047152286,4.3974,3621.9,3621.6,5.76119437]
[1754047152589,4.3974,3621.9,3621.6,5.96444634]
[1754047152771,4.3974,3621.9,3621.7,1.0599]
[1754047153161,4.259,3621.9,3621.8,3.82095803]
[1754047153548,4.259,3621.9,3621.8,4.79949331]
[1754047153747,0.1384,3622.3,3622.2,2.76075313]
[1754047153953,0.7181,3623.5,3622.2,2.76075313]
[1754047153954,0.1384,3622.7,3622.2,4.0599]
[1754047154154,0.1384,3622.7,3622.3,1.0599]
[1754047154377,0.1384,3622.7,3622.3,0.5976]
[1754047154708,0.1384,3622.7,3622.6,2.76044829]
[1754047154854,0.1384,3622.7,3622.6,1.0599]
[1754047155588,0.1384,3622.7,3622.6,0.5976]
[1754047155799,0.1384,3622.7,3622.6,3.35804829]
[1754047156294,0.1384,3622.7,3622.6,3.82034829]
[1754047156594,6.631,3623.6,3623.0,2.76012581]
[1754047156788,4.257,3623.5,3623.0,3.35072581]
[1754047156981,4.257,3623.5,3622.6,3.21952381]
[1754047156982,0.1384,3623.1,3622.6,3.21952381]
[1754047157185,0.1384,3623.1,3622.7,2.76036475]
[1754047157373,0.1384,3623.1,3622.7,3.35096475]
[1754047157698,0.1384,3623.1,3622.7,0.5906]
[1754047158000,0.1384,3623.1,3622.5,2.8988956]
[1754047158367,0.1384,3622.8,3622.7,2.76036586]
[1754047158572,4.256,3622.9,3622.8,2.7602959]
[1754047158796,4.256,3622.9,3622.8,3.8099959]
[1754047159313,4.256,3622.9,3622.5,2.76046133]
[1754047159475,0.1384,3622.8,3622.5,2.76046133]
[1754047159675,0.1384,3622.8,3622.1,0.5906]
[1754047159872,0.1384,3622.5,3622.0,3.1384]
[1754047160077,4.3966,3623.3,3623.2,2.75993829]
[1754047160260,4.259,3623.3,3623.2,2.75993829]
[1754047160604,4.259,3623.3,3623.2,3.80963829]
[1754047164100,4.259,3623.3,3623.2,0.5906]
[1754047164304,4.259,3623.3,3623.1,2.76005234]
[1754047164613,4.259,3623.3,3623.2,2.75999116]
[1754047165018,4.259,3623.3,3623.2,3.35059116]
[1754047166414,4.259,3623.3,3623.1,2.76003919]
[1754047167012,4.259,3623.3,3623.2,2.75999116]
[1754047167222,4.259,3623.3,3623.2,3.35059116]
[1754047167424,4.259,3623.3,3623.2,3.80969116]
[1754047167934,4.259,3623.3,3623.2,6.80969116]
[1754047168309,4.259,3623.3,3623.2,7.78051294]
[1754047168829,4.259,3623.3,3623.2,7.58051294]
[1754047170542,6.632,3624.6,3624.3,2.7590937]
[1754047170703,6.632,3624.6,3623.6,3.0]
[1754047170704,4.252,3624.4,3623.6,3.0]
[1754047170908,4.252,3624.4,3624.1,2.75924126]
[1754047171226,4.252,3624.4,3624.3,2.75915349]
[1754047171541,4.252,3624.4,3624.3,4.01889825]
[1754047173037,4.252,3624.4,3624.3,3.55979825]
[1754047173539,4.252,3624.4,3624.3,2.96919825]
[1754047174130,4.252,3624.4,3624.3,3.55979825]
[1754047174449,7.06,3625.7,3624.3,1.54405376]
[1754047174608,0.5451,3625.8,3624.9,2.75869679]
[1754047174803,0.1376,3625.2,3624.9,3.34929679]
[1754047175004,0.5451,3625.8,3625.0,3.34920749]
[1754047175005,4.253,3625.1,3625.0,3.34920749]
[1754047175201,4.253,3625.1,3625.0,1.0497]
[1754047175401,4.253,3625.1,3625.0,6.80832068]
[1754047175706,4.253,3625.1,3625.0,6.94592068]
[1754047178133,4.253,3625.1,3625.0,6.48682068]
[1754047178662,4.253,3625.1,3625.0,6.94592068]
[1754047180163,4.253,3625.1,3625.0,5.89622068]
[1754047180563,4.253,3625.1,3625.0,6.94592068]
[1754047180744,4.253,3625.1,3625.0,7.91638139]
[1754047182638,4.253,3625.1,3625.0,7.45728139]
[1754047182838,4.253,3625.1,3625.0,5.89622068]
[1754047183253,4.253,3625.1,3625.0,6.48682068]
[1754047183656,4.253,3625.1,3625.0,6.94592068]
[1754047188456,4.3826,3625.6,3625.2,2.75842698]
[1754047188657,4.3826,3625.6,3625.4,2.75825727]
[1754047188894,4.3826,3625.6,3625.3,2.75836171]
[1754047189066,4.3826,3625.6,3625.4,2.75831484]
[1754047189252,4.3826,3625.6,3625.3,2.75837525]
[1754047189586,4.3826,3625.6,3625.2,2.75843166]
[1754047190708,4.3826,3625.6,3625.3,2.7583813]
[1754047191291,4.3826,3625.6,3625.2,2.75844609]
[1754047191477,4.3826,3625.6,3625.3,2.75838471]
[1754047191894,4.3826,3625.6,3625.2,2.75844488]
[1754047192689,4.3826,3625.6,3625.2,0.5668]
[1754047192896,4.3826,3625.6,3625.1,3.19021736]
[1754047192897,4.3826,3625.6,3625.1,2.75851736]
[1754047193279,1.0269,3625.5,3624.5,0.5668]
[1754047193473,0.1376,3625.3,3625.0,2.75854788]
[1754047193686,0.7278,3625.3,3624.9,3.0]
[1754047193980,0.5902,3625.2,3624.7,2.89642775]
[1754047194314,4.245,3625.1,3625.0,3.0]
[1754047194700,4.245,3625.1,3624.8,5.75874814]
[1754047195016,4.245,3625.1,3625.0,3.0]
[1754047195670,4.245,3625.1,3625.0,5.75862068]
[1754047195895,4.245,3625.1,3625.0,2.75862068]
[1754047196214,4.245,3625.1,3624.9,2.75867343]
[1754047196401,4.245,3625.1,3625.0,2.75862068]
[1754047196807,4.245,3625.1,3625.0,3.0]
[1754047198201,4.245,3625.1,3625.0,2.75862068]
[1754047198407,4.245,3625.1,3625.0,3.0]
[1754047198578,4.245,3625.1,3625.0,2.75862068]
[1754047198978,4.245,3625.1,3625.0,3.0]
[1754047199279,4.245,3625.1,3625.0,2.75862068]
[1754047199503,4.245,3625.1,3625.0,3.0]
[1754047199810,5.2719,3625.1,3624.4,0.5668]
[1754047199996,4.3826,3625.1,3624.8,2.75870416]
[1754047200201,4.3826,3625.1,3624.6,3.0]
[1754047200405,1.0269,3625.0,3624.6,2.75887494]
[1754047200603,1.0269,3625.0,3624.7,2.75884487]
[1754047200833,0.5902,3625.0,3624.7,2.75884487]
[1754047201007,4.3826,3625.1,3624.7,3.0]
[1754047201210,5.81285,3625.1,3624.4,3.0]
[1754047201501,0.1376,3624.7,3624.3,0.21004476]
[1754047201708,4.245,3624.6,3624.2,2.8968051]
[1754047201932,4.8352,3624.6,3624.2,2.8968051]
[1754047202133,4.245,3624.6,3624.2,2.8968051]
[1754047202334,4.245,3624.6,3624.3,2.75914139]
[1754047202528,4.245,3624.6,3624.3,2.97047393]
[1754047202828,4.245,3624.6,3624.4,3.0]
[1754047203032,4.245,3624.6,3624.4,2.75907217]
[1754047203327,4.245,3624.6,3624.4,3.32587736]
[1754047203514,4.245,3624.6,3624.4,0.5668]
[1754047203722,4.245,3624.6,3624.4,3.32587532]
[1754047204442,4.245,3624.6,3624.5,3.75750124]
[1754047204596,0.1376,3625.0,3624.6,2.75889324]
[1754047204797,4.245,3624.9,3624.7,0.9985]
[1754047205197,4.245,3624.9,3624.7,3.75734625]
[1754047205396,4.245,3624.9,3624.7,0.9985]
[1754047206234,0.1376,3625.1,3624.8,3.75727289]
[1754047206431,4.245,3625.0,3624.8,2.75877289]
[1754047206731,0.1376,3625.1,3625.0,2.75862068]
[1754047206895,0.1376,3625.1,3625.0,5.78620688]
[1754047207102,0.1376,3625.1,3625.0,6.75712068]
[1754047207336,4.245,3625.3,3625.0,3.0]
[1754047207497,4.3826,3625.3,3625.1,2.75852523]
[1754047207698,4.3826,3625.3,3625.1,2.7584843]
[1754047207914,4.3826,3625.3,3625.2,3.0]
[1754047208115,4.3826,3625.3,3625.0,3.0]
[1754047208331,4.3826,3625.3,3624.9,3.0]
[1754047208535,4.3826,3625.3,3625.0,3.0]
[1754047208850,0.5902,3625.2,3624.8,0.1376]
[1754047209910,0.5902,3625.2,3624.8,2.89636325]
[1754047210157,4.8193,3625.3,3624.8,0.1376]
[1754047210158,4.3826,3625.3,3624.8,0.1376]
[1754047210327,0.1376,3624.9,3624.3,0.20953922]
[1754047210513,0.1376,3624.4,3623.9,0.1376]
[1754047210710,4.244,3624.3,3624.1,2.7592922]
[1754047210916,4.244,3624.3,3623.9,0.7044]
[1754047211136,4.244,3624.3,3623.9,3.46385162]
[1754047211338,4.244,3624.3,3623.9,0.7044]
[1754047211747,4.244,3624.3,3623.9,0.1376]
[1754047212050,4.244,3624.3,3624.0,2.75938149]
[1754047212251,4.244,3624.3,3623.9,3.32624766]
[1754047212655,4.244,3624.3,3624.0,2.75937918]
[1754047212855,4.244,3624.3,3624.1,2.75929892]
[1754047213022,4.244,3624.3,3624.1,0.4317]
[1754047213353,4.244,3624.3,3624.2,0.5668]
[1754047213655,0.43826,3625.2,3624.3,2.75915349]
[1754047213857,0.1376,3624.5,3624.3,2.75915349]
[1754047214021,4.244,3624.4,3624.3,2.75915349]
[1754047214220,4.244,3624.4,3624.2,14.15663362]
[1754047214518,4.244,3624.4,3624.3,3.32595349]
[1754047214835,4.244,3624.4,3624.3,3.75765349]
[1754047215237,4.244,3624.4,3624.3,0.9985]
[1754047215545,4.244,3624.4,3624.3,3.75765349]
[1754047216170,4.244,3624.4,3624.3,0.9985]
[1754047216371,4.244,3624.4,3624.1,3.0]
[1754047216687,4.8038,3624.4,3624.0,3.0]
[1754047216984,0.1376,3624.3,3624.0,0.5368]
[1754047217282,0.1376,3624.3,3624.1,3.0]
[1754047217470,0.1376,3624.3,3623.9,2.96543691]
[1754047217644,0.1376,3624.3,3623.9,2.75944739]
[1754047218048,0.1376,3624.3,3623.9,3.29624739]
[1754047218482,0.1376,3624.3,3623.9,0.5368]
[1754047218687,0.1376,3624.3,3624.0,3.0]
[1754047219062,0.1376,3624.3,3623.9,3.0]
[1754047219389,0.43816,3624.2,3623.8,2.89712369]
[1754047219550,4.244,3624.4,3623.8,0.74785246]
[1754047219750,0.1376,3624.0,3623.8,0.74785246]
[1754047219952,4.244,3623.9,3623.8,0.21105246]
[1754047220148,4.244,3623.9,3623.6,2.75965867]
[1754047220349,4.244,3623.9,3623.5,3.5368]
[1754047220849,4.8038,3623.9,3623.5,3.0]
[1754047221052,0.1376,3623.7,3623.4,3.0]
[1754047221253,0.1376,3623.7,3623.2,0.5368]
[1754047221450,0.1376,3623.7,3623.6,5.75968649]
[1754047222192,4.245,3623.9,3623.7,3.0]
[1754047222487,4.245,3623.9,3623.8,2.75953419]
[1754047222688,4.245,3623.9,3623.8,2.89713419]
[1754047222858,4.245,3623.9,3623.8,3.87953419]
[1754047223824,0.1376,3624.3,3624.2,2.75922962]
[1754047223970,0.1376,3624.6,3624.5,2.75894419]
[1754047224175,4.245,3624.6,3624.5,0.9824]
[1754047224376,4.245,3624.6,3624.4,0.1376]
[1754047224771,4.245,3624.6,3624.4,0.6744]
[1754047225127,4.245,3624.6,3624.4,0.1376]
[1754047225672,4.245,3624.6,3624.2,2.7592059]
[1754047226169,0.1376,3624.5,3624.2,2.7592059]
[1754047226403,0.1376,3624.5,3624.3,2.75912994]
[1754047227583,0.1376,3624.5,3624.2,3.29602114]
[1754047227904,0.1376,3624.5,3624.3,2.7591448]
[1754047228122,0.1376,3624.5,3624.4,2.75907736]
[1754047228321,0.1376,3624.7,3624.6,2.75892512]
[1754047228466,4.244,3624.7,3624.6,0.9824]
[1754047228669,4.244,3624.7,3624.4,2.89664539]
[1754047229073,4.244,3624.7,3624.4,3.43345447]
[1754047229272,4.244,3624.7,3624.4,3.43345418]
[1754047229807,4.244,3624.7,3624.5,2.75898328]
[1754047230182,4.244,3624.7,3624.6,3.29572512]
[1754047230383,4.244,3624.7,3624.6,0.9824]
[1754047230598,4.244,3624.7,3624.4,0.1376]
[1754047230971,4.244,3624.7,3624.4,3.43347722]
[1754047231510,0.1376,3624.9,3624.4,3.43347722]
[1754047231672,4.244,3624.8,3624.5,2.75898823]
[1754047231877,4.244,3624.8,3624.4,3.34224923]
[1754047232077,4.244,3624.8,3624.4,0.6744]
[1754047232272,4.244,3624.8,3624.4,0.1376]
[1754047232579,4.244,3624.8,3624.4,0.6744]
[1754047232797,4.244,3624.8,3624.4,3.43344806]
[1754047233205,4.244,3624.8,3624.4,0.6744]
[1754047233385,4.244,3624.8,3624.5,2.75895264]
[1754047233584,4.244,3624.8,3624.5,3.29575264]
[1754047233811,4.244,3624.8,3624.5,0.5368]
[1754047234273,4.244,3624.8,3624.4,2.89664371]
[1754047234676,4.244,3624.8,3624.5,2.75899931]
[1754047234876,4.244,3624.8,3624.4,2.89665157]
[1754047235076,4.244,3624.8,3624.4,0.6744]
[1754047235382,4.244,3624.8,3624.4,3.43347159]
[1754047235830,4.244,3624.8,3624.5,3.2957817]
[1754047236107,4.244,3624.8,3624.6,3.29570285]
[1754047236323,4.244,3624.8,3624.4,0.1376]
[1754047236324,4.68216,3624.8,3624.4,0.1376]
[1754047236608,4.68216,3624.8,3623.5,3.0]
[1754047236609,1.1581,3624.7,3624.2,0.1376]
[1754047236982,1.0205,3624.6,3624.2,3.1376]
[1754047237182,1.0205,3624.5,3623.8,0.4456]
[1754047237396,4.244,3624.4,3624.0,0.1376]
[1754047237574,4.78421,3624.4,3624.0,0.1376]
[1754047237777,5.34401,3624.4,3624.0,0.1376]
[1754047238111,5.34401,3624.4,3623.8,5.75948137]
[1754047238311,0.1376,3624.1,3623.8,5.75948137]
[1754047238506,4.244,3624.0,3623.8,5.75948137]
[1754047238718,4.244,3624.0,3623.6,3.10861426]
[1754047238719,4.244,3624.0,3623.6,0.3489537]
[1754047239014,4.244,3624.0,3623.9,2.75945804]
[1754047239216,4.244,3624.0,3623.7,0.5368]
[1754047239387,4.244,3624.0,3623.8,2.75945957]
[1754047239593,4.244,3624.0,3623.8,3.20505957]
[1754047239905,4.244,3624.0,3623.9,3.29625804]
[1754047240106,4.244,3624.0,3623.9,0.5368]
[1754047240680,4.244,3624.0,3623.9,2.75945804]
[1754047240879,4.244,3624.0,3623.8,3.20510112]
[1754047241281,4.244,3624.0,3623.8,3.74190112]
[1754047241725,4.244,3624.0,3623.9,2.75945804]
[1754047242383,0.5598,3625.0,3624.1,2.75930575]
[1754047242647,0.1376,3624.6,3624.2,0.9824]
[1754047242796,4.244,3624.6,3624.4,0.1376]
[1754047243002,4.244,3624.6,3624.1,3.0]
[1754047243301,4.3816,3624.5,3624.1,2.75928162]
[1754047243512,4.3816,3624.5,3624.0,2.89697572]
[1754047243830,4.3816,3624.5,3624.2,2.75922619]
[1754047244029,4.3816,3624.5,3624.0,3.43377214]
[1754047244185,4.3816,3624.5,3624.1,2.75930216]
[1754047244385,4.3816,3624.5,3624.0,3.43376387]
[1754047244638,5.2645,3624.5,3623.9,3.0]
[1754047244922,0.1376,3624.2,3624.0,2.75933215]
[1754047245230,0.1376,3624.2,3623.9,2.75945348]
[1754047245436,0.1376,3624.2,3624.0,2.75938189]
[1754047246272,4.244,3624.5,3624.2,2.75919092]
[1754047246423,4.243,3624.4,3624.3,3.29589391]
[1754047246628,0.1376,3624.5,3624.3,3.75739391]
[1754047246828,4.243,3624.4,3624.3,3.75739391]
[1754047247465,4.243,3624.4,3624.0,0.1376]
[1754047247960,4.243,3624.4,3624.2,2.75921992]
[1754047248263,4.243,3624.4,3624.3,2.75915349]
[1754047248449,4.243,3624.4,3624.2,3.30470604]
[1754047248626,0.1376,3624.5,3624.2,3.30470604]
[1754047248824,4.243,3624.4,3624.2,0.5455]
[1754047249027,4.68106,3624.4,3624.0,0.1376]
[1754047249237,0.1376,3624.2,3623.8,3.0]
[1754047249562,0.1376,3623.9,3623.7,3.0]
[1754047249774,4.3806,3623.9,3623.7,3.0]
[1754047249950,4.3806,3623.9,3623.8,5.75953419]
[1754047250341,4.3806,3623.9,3623.8,3.0]
[1754047250546,4.3806,3623.9,3623.8,5.75953419]
[1754047252173,4.3806,3623.9,3623.6,0.20721357]
[1754047252377,4.3806,3623.9,3623.4,3.1376]
[1754047252550,4.8088,3623.9,3623.4,3.0]
[1754047252749,0.1376,3623.6,3623.4,3.0]
[1754047252963,0.1376,3623.6,3623.4,5.7597956]
[1754047253259,0.1376,3623.6,3623.4,2.7597886]
[1754047253652,0.1376,3623.6,3623.4,2.75983682]
[1754047253852,0.1376,3623.6,3623.4,3.30533682]
[1754047254262,0.1376,3623.6,3623.4,3.5113728]
[1754047254579,0.1376,3623.6,3623.4,3.51136475]
[1754047255572,0.1376,3623.6,3623.4,0.20603598]
[1754047255774,0.1376,3623.6,3623.2,3.4615]
[1754047255968,0.1376,3623.6,3623.2,1.007]
[1754047256382,0.1376,3623.6,3623.3,2.75991499]
[1754047256881,0.1376,3623.6,3623.3,0.5455]
[1754047257291,0.1376,3623.6,3623.4,2.75977451]
[1754047257495,0.1376,3623.6,3623.2,3.4615]
[1754047257806,0.1376,3623.6,3623.1,2.89840267]
[1754047257807,0.1376,3623.6,3623.1,0.1384]
[1754047258105,0.1376,3623.6,3623.2,0.5455]
[1754047258311,0.1376,3623.6,3623.2,3.5098816]
[1754047258464,0.1376,3623.6,3623.2,0.2044192]
[1754047258666,0.1376,3623.4,3622.9,0.6839]
[1754047258868,4.243,3623.3,3622.9,1.09844]
[1754047259065,4.243,3623.3,3622.4,0.5455]
[1754047259405,4.243,3623.3,3622.9,2.76021079]
[1754047259406,0.1376,3623.2,3622.9,2.76021079]
[1754047259566,0.1376,3623.2,3623.0,2.76013206]
[1754047259759,0.1376,3623.2,3622.9,3.30568594]
[1754047260203,0.1376,3623.2,3623.0,2.76013884]
[1754047260412,4.243,3623.5,3623.1,2.89846734]
[1754047260706,7.06,3624.6,3623.8,2.75950382]
[1754047260908,7.06,3624.7,3623.9,12.40443489]
[1754047261064,4.3806,3624.5,3624.3,2.7591387]
[1754047261475,4.243,3624.5,3624.4,3.76607736]
[1754047261681,3.0,3625.7,3624.4,3.76607736]
[1754047261682,10.4433,3626.0,3624.5,3.0]
[1754047261884,0.1376,3625.4,3625.1,2.75854459]
[1754047262106,0.1376,3625.4,3625.3,2.75832601]
[1754047262470,4.243,3625.9,3625.3,2.75832601]
[1754047262683,0.1376,3625.6,3625.4,2.7582724]
[1754047262882,4.243,3625.5,3625.2,2.7584147]
[1754047263090,4.243,3625.5,3625.1,3.10097548]
[1754047263410,4.243,3625.5,3625.2,2.7584647]
[1754047263563,4.243,3625.5,3625.1,2.89613365]
[1754047263962,4.243,3625.5,3625.1,3.44163365]
[1754047264897,4.243,3625.5,3625.1,0.6831]
[1754047265099,0.1376,3625.4,3625.1,0.5455]
[1754047265679,0.1376,3625.4,3625.1,3.50828961]
[1754047266176,0.1376,3625.4,3625.1,3.50835301]
[1754047266591,0.1376,3625.4,3625.2,3.30394564]
[1754047266791,0.1376,3625.4,3625.2,0.5455]
[1754047267687,0.1376,3625.4,3625.2,3.30395653]
[1754047268300,0.1376,3625.4,3625.2,0.4615]
[1754047268488,0.1376,3625.4,3625.3,0.5455]
[1754047268912,0.1376,3625.4,3625.1,0.2043115]
[1754047269085,0.1376,3625.4,3625.1,2.7585259]
[1754047269284,0.1376,3625.4,3625.1,3.7655259]
[1754047269817,0.1376,3625.4,3625.2,3.76546353]
[1754047270312,0.5505,3626.2,3625.3,1.007]
[1754047270511,6.631,3626.7,3625.4,0.4615]
[1754047270512,4.242,3626.1,3625.4,0.4615]
[1754047270718,4.242,3626.0,3625.9,2.75793596]
[1754047270925,4.242,3626.0,3625.9,3.76493596]
[1754047272119,4.239,3626.0,3625.9,3.90253596]
[1754047272321,4.239,3626.0,3625.9,7.56859199]
[1754047280223,4.239,3626.0,3625.9,6.56159199]
[1754047280431,4.239,3626.0,3625.9,7.11579199]
[1754047280631,4.239,3626.0,3625.9,7.58449199]
[1754047282456,0.1376,3626.8,3626.0,3.0]
[1754047282593,7.6105,3627.5,3626.6,2.75740362]
[1754047282594,4.24,3626.7,3626.6,2.75740362]
[1754047282934,4.24,3626.7,3626.6,3.78030362]
[1754047283132,4.24,3626.7,3626.5,2.75746064]
[1754047283337,4.24,3626.7,3626.4,0.1376]
[1754047283534,4.24,3626.7,3626.1,3.66443188]
[1754047283535,1.1366,3626.6,3626.1,5.89537307]
[1754047283741,0.5861,3626.6,3626.1,3.1376]
[1754047284041,0.5505,3626.5,3626.1,2.89536362]
[1754047284219,0.5505,3626.5,3626.1,0.1376]
[1754047284420,0.1376,3626.6,3626.2,2.75765331]
[1754047284601,0.1376,3626.6,3626.1,0.1376]
[1754047284798,0.6881,3626.6,3626.1,0.1376]
[1754047285132,0.6881,3626.6,3625.8,1.0229]
[1754047285133,0.999,3626.5,3625.8,3.5542]
[1754047285436,0.999,3626.5,3625.9,0.1376]
[1754047286034,0.999,3626.5,3626.0,2.75783635]
[1754047286242,0.999,3626.5,3625.9,2.89550375]
[1754047286599,0.5505,3626.5,3626.0,2.75785256]
[1754047286932,0.5505,3626.5,3625.9,0.1376]
[1754047287137,0.5505,3626.5,3626.1,2.75778141]
[1754047287338,0.1376,3626.6,3625.9,3.1376]
[1754047287514,0.1376,3626.6,3626.1,0.5542]
[1754047288220,0.1376,3626.6,3626.2,2.75766093]
[1754047288440,2.75658858,3627.7,3625.9,3.0]
[1754047288441,0.5313,3627.8,3626.5,11.53042414]
[1754047288608,0.1376,3627.3,3627.0,2.75706877]
[1754047288810,4.239,3627.2,3627.0,3.31128092]
[1754047289020,4.239,3627.2,3627.1,2.75702351]
[1754047289222,4.239,3627.2,3627.0,3.31126667]
[1754047289429,4.239,3627.2,3626.9,2.75715912]
[1754047289741,4.239,3627.2,3627.1,2.75702351]
[1754047290102,4.239,3627.2,3627.1,3.31122351]
[1754047290498,4.239,3627.2,3627.0,0.1376]
[1754047290814,4.239,3627.2,3626.6,3.0]
[1754047290815,1.1174,3627.1,3626.6,3.0]
[1754047291017,0.1376,3626.8,3626.6,3.0]
[1754047291242,4.239,3626.7,3626.6,3.0]
[1754047292026,4.239,3626.7,3626.2,5.7576423]
[1754047292202,4.239,3626.7,3626.2,6.3118423]
[1754047292399,4.239,3626.7,3626.2,3.0]
[1754047292604,4.239,3626.7,3626.3,3.78050994]
[1754047293357,4.239,3626.7,3626.4,2.75754536]
[1754047293536,0.5313,3627.5,3626.6,3.0]
[1754047293738,0.1376,3627.1,3626.6,0.1376]
[1754047294040,0.5313,3627.8,3626.7,1.05047327]
[1754047294239,0.5313,3627.8,3626.1,17.68760266]
[1754047294240,0.1376,3627.4,3626.9,2.89473151]
[1754047294408,0.1376,3627.4,3627.0,3.77999589]
[1754047295009,0.1376,3627.4,3626.9,0.1376]
[1754047295343,0.9798,3627.3,3626.7,2.75727326]
[1754047295544,4.238,3627.2,3626.7,0.1376]
[1754047295745,4.238,3627.2,3626.2,3.0]
[1754047295746,0.1376,3627.0,3626.6,3.0]
[1754047296042,0.9798,3626.9,3626.1,1.0229]
[1754047296209,0.1376,3626.8,3626.3,3.1376]
[1754047296410,4.238,3626.7,3626.2,3.0]
[1754047296610,4.238,3626.7,3626.1,3.1376]
[1754047296849,0.1376,3626.4,3626.1,3.0]
[1754047297614,0.1376,3626.4,3626.2,2.75769154]
[1754047297816,0.1376,3626.4,3626.2,3.0]
[1754047298011,0.1376,3626.4,3625.9,2.89551034]
[1754047298257,0.1376,3626.4,3625.9,0.1376]
[1754047298497,0.1376,3626.4,3626.1,3.0]
[1754047298746,0.1376,3626.4,3626.0,3.0]
[1754047298953,0.9798,3626.3,3625.9,0.1376]
[1754047299115,4.238,3626.2,3625.9,0.1376]
[1754047299316,0.1376,3626.0,3625.3,2.8959379]
[1754047299545,0.1376,3625.8,3625.4,0.5542]
[1754047299766,4.238,3625.7,3625.6,2.75815211]
[1754047300327,4.238,3625.7,3625.4,3.0]
[1754047300550,4.238,3625.7,3625.4,2.75830227]
[1754047300849,4.238,3625.7,3625.3,5.89598698]
[1754047301153,4.238,3625.7,3625.5,3.0]
[1754047301349,4.238,3625.7,3625.5,2.75822841]
[1754047301718,4.238,3625.7,3625.3,0.6918]
[1754047301910,4.238,3625.7,3625.3,0.5542]
[1754047302113,4.238,3625.7,3625.4,2.7583051]
[1754047302842,4.238,3625.7,3625.4,3.3125051]
[1754047303044,4.238,3625.7,3625.4,0.5542]
[1754047303248,4.238,3625.7,3625.4,3.31248856]
[1754047303549,4.238,3625.7,3625.5,2.7582322]
[1754047304048,4.238,3625.7,3625.4,3.31249932]
[1754047304252,4.238,3625.7,3625.6,2.75816416]
[1754047304551,0.1376,3625.8,3625.7,2.75808809]
[1754047304721,0.1376,3625.8,3625.7,3.78098809]
[1754047304927,0.1376,3625.8,3625.7,6.78098809]
[1754047305451,4.238,3626.4,3626.3,2.75763174]
[1754047306119,4.238,3626.4,3626.2,2.75768632]
[1754047306273,4.238,3626.4,3626.3,2.75763174]
[1754047306629,4.238,3626.4,3626.3,3.30923174]
[1754047307751,4.238,3626.4,3626.1,2.75773802]
[1754047308453,4.238,3626.4,3626.1,3.30933802]
[1754047308863,4.238,3626.4,3626.0,0.1376]
[1754047309029,4.238,3626.4,3626.1,2.75778365]
[1754047309230,4.238,3626.4,3626.0,2.89543797]
[1754047309426,4.238,3626.4,3625.9,2.75793447]
[1754047309630,0.1376,3626.1,3625.9,3.0]
[1754047309845,0.1376,3626.1,3625.8,2.75798222]
[1754047309846,0.1376,3626.1,3626.0,2.7578599]
[1754047310339,0.1376,3626.1,3625.9,2.75790705]
[1754047310726,0.1376,3626.1,3626.0,2.7578599]
[1754047310926,0.1376,3626.1,3625.9,2.7579029]
[1754047311160,0.1376,3626.1,3625.8,5.75795278]
[1754047311360,0.1376,3626.1,3625.6,0.1376]
[1754047311567,0.1376,3626.1,3626.0,2.7578599]
[1754047311745,0.1376,3626.1,3625.8,2.7579909]
[1754047311930,0.1376,3626.1,3625.7,1.024]